[Event "*** Titled Tuesday Blitz"]
[Site "Chess.com"]
[Date "2021.02.02"]
[Round "7"]
[White "Milchone1"]
[Black "Kobalia"]
[Result "0-1"]
[WhiteElo "2519"]
[BlackElo "2699"]
[TimeControl "180+1"]
[EndTime "11:19:30 PST"]
[Termination "Kobalia won on time"]

1. Nf3 {[%clk 0:03:00.9]} 1... Nf6 {[%clk 0:02:59.1]} 2. c4 {[%clk 0:03:00.8]}
2... g6 {[%clk 0:02:59]} 3. Nc3 {[%clk 0:03:00.6]} 3... Bg7 {[%clk 0:02:59.5]}
4. e4 {[%clk 0:03:01]} 4... O-O {[%clk 0:03:00]} 5. d4 {[%clk 0:03:01.4]} 5...
d6 {[%clk 0:03:00.5]} 6. h3 {[%clk 0:03:01.9]} 6... e5 {[%clk 0:03:00.8]} 7.
dxe5 {[%clk 0:03:02.8]} 7... dxe5 {[%clk 0:03:00.4]} 8. Be3 {[%clk 0:03:03.7]}
8... c6 {[%clk 0:02:57]} 9. Be2 {[%clk 0:03:03.2]} 9... Qe7 {[%clk 0:02:56.3]}
10. O-O {[%clk 0:03:03]} 10... Nbd7 {[%clk 0:02:56.4]} 11. a3 {[%clk 0:03:01.3]}
11... Nh5 {[%clk 0:02:56.3]} 12. b4 {[%clk 0:03:00.8]} 12... Nf4 {[%clk
0:02:55.8]} 13. Re1 {[%clk 0:03:01.3]} 13... Rd8 {[%clk 0:02:51.8]} 14. c5
{[%clk 0:02:55.5]} 14... Nf8 {[%clk 0:02:47.1]} 15. Qc2 {[%clk 0:02:55.4]} 15...
N8e6 {[%clk 0:02:44.2]} 16. Rad1 {[%clk 0:02:55]} 16... Re8 {[%clk 0:02:37.8]}
17. Rd6 {[%clk 0:02:51]} 17... Ng5 {[%clk 0:02:21.2]} 18. Bxf4 {[%clk
0:01:21.8]} 18... exf4 {[%clk 0:02:20.5]} 19. Nxg5 {[%clk 0:01:10]} 19... Qxg5
{[%clk 0:02:19.6]} 20. Qd3 {[%clk 0:01:10.5]} 20... Be5 {[%clk 0:02:14.8]} 21.
Bf1 {[%clk 0:01:01.4]} 21... Bxd6 {[%clk 0:02:06.6]} 22. cxd6 {[%clk 0:01:02.3]}
22... Qe5 {[%clk 0:02:05.3]} 23. Na4 {[%clk 0:00:51.9]} 23... Be6 {[%clk
0:01:41.5]} 24. Nc5 {[%clk 0:00:49.2]} 24... b6 {[%clk 0:01:40.8]} 25. Nxe6
{[%clk 0:00:43.2]} 25... Rxe6 {[%clk 0:01:38.2]} 26. d7 {[%clk 0:00:42.2]} 26...
Rd6 {[%clk 0:01:29.8]} 27. Qc4 {[%clk 0:00:42.2]} 27... Rd8 {[%clk 0:01:25.1]}
28. Be2 {[%clk 0:00:37.6]} 28... R8xd7 {[%clk 0:01:23.6]} 29. Bg4 {[%clk
0:00:37.3]} 29... Rd8 {[%clk 0:01:21.9]} 30. Rc1 {[%clk 0:00:31.3]} 30... h5
{[%clk 0:01:20]} 31. Bf3 {[%clk 0:00:31.1]} 31... Kg7 {[%clk 0:01:19.2]} 32. Qa6
{[%clk 0:00:30]} 32... R8d7 {[%clk 0:01:14.3]} 33. Qc8 {[%clk 0:00:29.4]} 33...
Rd2 {[%clk 0:00:49.7]} 34. Qxc6 {[%clk 0:00:27.5]} 34... R7d3 {[%clk 0:00:36.1]}
35. Qc7 {[%clk 0:00:18.6]} 35... Qg5 {[%clk 0:00:22.6]} 36. Kf1 {[%clk
0:00:12.5]} 36... Qh4 {[%clk 0:00:17.9]} 37. Be2 {[%clk 0:00:09.2]} 37... f3
{[%clk 0:00:11.2]} 38. Qe5+ {[%clk 0:00:08.5]} 38... Kh7 {[%clk 0:00:10.4]} 39.
gxf3 {[%clk 0:00:06.7]} 39... Rxf3 {[%clk 0:00:10.1]} 0-1

[Event "*** Titled Tuesday Blitz"]
[Site "Chess.com"]
[Date "2021.02.02"]
[Round "7"]
[White "bazar-wokzal"]
[Black "Chamal_Gedgafov"]
[Result "1-0"]
[WhiteElo "2519"]
[BlackElo "2362"]
[TimeControl "180+1"]
[EndTime "11:19:30 PST"]
[Termination "bazar-wokzal won on time"]

1. e4 {[%clk 0:03:00.7]} 1... e5 {[%clk 0:02:59.4]} 2. Bc4 {[%clk 0:02:59.7]}
2... Nf6 {[%clk 0:02:58.3]} 3. d3 {[%clk 0:02:59.6]} 3... c6 {[%clk 0:02:58.4]}
4. Nf3 {[%clk 0:02:59.4]} 4... d5 {[%clk 0:02:58.6]} 5. Bb3 {[%clk 0:02:59.2]}
5... Bb4+ {[%clk 0:02:58.9]} 6. c3 {[%clk 0:02:58.8]} 6... Bd6 {[%clk
0:02:58.2]} 7. Bg5 {[%clk 0:02:58]} 7... Be6 {[%clk 0:02:55.2]} 8. d4 {[%clk
0:02:57.8]} 8... dxe4 {[%clk 0:02:39.7]} 9. Nxe5 {[%clk 0:02:50.7]} 9... Bxb3
{[%clk 0:02:10.7]} 10. Qxb3 {[%clk 0:02:45.2]} 10... Qe7 {[%clk 0:02:07.9]} 11.
Bxf6 {[%clk 0:02:33.2]} 11... gxf6 {[%clk 0:02:06.8]} 12. Nc4 {[%clk 0:02:33.3]}
12... Bf4 {[%clk 0:02:02]} 13. g3 {[%clk 0:02:30.5]} 13... Bh6 {[%clk 0:02:01]}
14. Qxb7 {[%clk 0:02:23.8]} 14... Qxb7 {[%clk 0:01:54.4]} 15. Nd6+ {[%clk
0:02:23.6]} 15... Ke7 {[%clk 0:01:48]} 16. Nxb7 {[%clk 0:02:24.5]} 16... Bc1
{[%clk 0:01:46.9]} 17. a4 {[%clk 0:02:23.5]} 17... Bxb2 {[%clk 0:01:46.2]} 18.
Ra2 {[%clk 0:02:23]} 18... Bc1 {[%clk 0:01:46.6]} 19. Nc5 {[%clk 0:02:02.1]}
19... f5 {[%clk 0:01:43.1]} 20. Ke2 {[%clk 0:01:52.6]} 20... Bh6 {[%clk
0:01:39.6]} 21. Rb2 {[%clk 0:01:53]} 21... Nd7 {[%clk 0:01:38.6]} 22. Rb7 {[%clk
0:01:52.6]} 22... Rhd8 {[%clk 0:01:37.1]} 23. Na3 {[%clk 0:01:52.4]} 23... Ke8
{[%clk 0:01:16.5]} 24. Nc4 {[%clk 0:01:39.3]} 24... Bf8 {[%clk 0:00:43.1]} 25.
Nxd7 {[%clk 0:01:31.3]} 25... Rxd7 {[%clk 0:00:42.3]} 26. Rhb1 {[%clk 0:01:31]}
26... Bd6 {[%clk 0:00:29.9]} 27. Nxd6+ {[%clk 0:01:13.4]} 27... Rxd6 {[%clk
0:00:29.2]} 28. Rc7 {[%clk 0:01:13.7]} 28... a5 {[%clk 0:00:19.3]} 29. Rbb7
{[%clk 0:01:12.6]} 29... Rf6 {[%clk 0:00:18.5]} 30. Ke3 {[%clk 0:01:10.6]} 30...
Rd8 {[%clk 0:00:15.9]} 31. Kf4 {[%clk 0:01:09.4]} 31... Rd5 {[%clk 0:00:12.9]}
32. Rc8+ {[%clk 0:00:46.4]} 32... Rd8 {[%clk 0:00:11.8]} 33. Rxd8+ {[%clk
0:00:46.7]} 33... Kxd8 {[%clk 0:00:11.6]} 34. Ke5 {[%clk 0:00:47]} 34... Re6+
{[%clk 0:00:09.9]} 35. Kxf5 {[%clk 0:00:47.2]} 35... Ke8 {[%clk 0:00:09.4]} 36.
Kf4 {[%clk 0:00:44]} 36... Kf8 {[%clk 0:00:07.8]} 37. Ra7 {[%clk 0:00:43.6]}
37... Rf6+ {[%clk 0:00:07.6]} 38. Ke3 {[%clk 0:00:43.7]} 38... Rf3+ {[%clk
0:00:07.3]} 39. Kxe4 {[%clk 0:00:44]} 39... Rxc3 {[%clk 0:00:06.9]} 40. Rxa5
{[%clk 0:00:44]} 40... Rc2 {[%clk 0:00:06.9]} 41. Rf5 {[%clk 0:00:43.7]} 41...
Ra2 {[%clk 0:00:05.1]} 42. a5 {[%clk 0:00:43.7]} 42... Ke7 {[%clk 0:00:05.5]}
43. h4 {[%clk 0:00:41.9]} 43... f6 {[%clk 0:00:04.4]} 44. f4 {[%clk 0:00:37]}
44... Ke6 {[%clk 0:00:03.7]} 45. Rc5 {[%clk 0:00:34.1]} 45... Kd6 {[%clk
0:00:01.5]} 46. Kf5 {[%clk 0:00:33.1]} 1-0

[Event "*** Titled Tuesday Blitz"]
[Site "Chess.com"]
[Date "2021.02.02"]
[Round "7"]
[White "BilodeauA"]
[Black "MarcoRiehle"]
[Result "1-0"]
[WhiteElo "2876"]
[BlackElo "2704"]
[TimeControl "180+1"]
[EndTime "11:19:32 PST"]
[Termination "BilodeauA won by checkmate"]

1. d4 {[%clk 0:03:00.9]} 1... d5 {[%clk 0:02:59.3]} 2. Nc3 {[%clk 0:03:01.5]}
2... e6 {[%clk 0:02:57.8]} 3. Bf4 {[%clk 0:03:01.5]} 3... c5 {[%clk 0:02:58.2]}
4. e3 {[%clk 0:02:59.4]} 4... Nf6 {[%clk 0:02:57.5]} 5. Nb5 {[%clk 0:02:58.5]}
5... Na6 {[%clk 0:02:56.3]} 6. c3 {[%clk 0:02:59.3]} 6... Be7 {[%clk 0:02:55.5]}
7. Nf3 {[%clk 0:02:59.8]} 7... O-O {[%clk 0:02:54.8]} 8. Be2 {[%clk 0:03:00.5]}
8... Bd7 {[%clk 0:02:53.4]} 9. O-O {[%clk 0:03:00.3]} 9... Bxb5 {[%clk
0:02:49.6]} 10. Bxb5 {[%clk 0:02:59.9]} 10... Nc7 {[%clk 0:02:50.2]} 11. Bd3
{[%clk 0:02:59.7]} 11... b5 {[%clk 0:02:42]} 12. Ne5 {[%clk 0:02:43.5]} 12... c4
{[%clk 0:02:36.3]} 13. Bc2 {[%clk 0:02:43.1]} 13... a5 {[%clk 0:02:31.5]} 14.
Qf3 {[%clk 0:02:42.3]} 14... Ra6 {[%clk 0:02:28.5]} 15. Rae1 {[%clk 0:02:33.9]}
15... b4 {[%clk 0:02:26.4]} 16. Qg3 {[%clk 0:02:34.2]} 16... Nce8 {[%clk
0:02:16.3]} 17. f3 {[%clk 0:02:28.1]} 17... a4 {[%clk 0:02:03.9]} 18. e4 {[%clk
0:02:20.7]} 18... a3 {[%clk 0:02:00.2]} 19. exd5 {[%clk 0:02:19.2]} 19... exd5
{[%clk 0:01:50.2]} 20. Ng4 {[%clk 0:01:49.6]} 20... Nxg4 {[%clk 0:01:28.6]} 21.
fxg4 {[%clk 0:01:50.5]} 21... axb2 {[%clk 0:01:18.4]} 22. g5 {[%clk 0:01:48.6]}
22... g6 {[%clk 0:01:00.4]} 23. h4 {[%clk 0:01:48.2]} 23... Ng7 {[%clk
0:00:56.4]} 24. Be5 {[%clk 0:01:48.3]} 24... Nh5 {[%clk 0:00:56.4]} 25. Qf3
{[%clk 0:01:45]} 25... f5 {[%clk 0:00:42.2]} 26. g4 {[%clk 0:01:39.6]} 26...
fxg4 {[%clk 0:00:31.6]} 27. Qxg4 {[%clk 0:01:39.3]} 27... bxc3 {[%clk
0:00:21.6]} 28. a4 {[%clk 0:01:37]} 28... Rxf1+ {[%clk 0:00:17.5]} 29. Rxf1
{[%clk 0:01:37.1]} 29... Bf8 {[%clk 0:00:17.7]} 30. Qf3 {[%clk 0:01:33]} 30...
Ra7 {[%clk 0:00:17.7]} 31. a5 {[%clk 0:01:24.9]} 31... Bg7 {[%clk 0:00:17.6]}
32. Qxc3 {[%clk 0:01:02.2]} 32... Bxe5 {[%clk 0:00:17]} 33. dxe5 {[%clk
0:01:03.1]} 33... Rf7 {[%clk 0:00:13.1]} 34. Qxb2 {[%clk 0:00:29.8]} 34... Rxf1+
{[%clk 0:00:12.9]} 35. Kxf1 {[%clk 0:00:30.7]} 35... Qxa5 {[%clk 0:00:12.7]} 36.
Qb8+ {[%clk 0:00:30.2]} 36... Kf7 {[%clk 0:00:12.5]} 37. Qd6 {[%clk 0:00:20.1]}
37... Qa1+ {[%clk 0:00:10.7]} 38. Ke2 {[%clk 0:00:13.8]} 38... Nf4+ {[%clk
0:00:05.2]} 39. Kf2 {[%clk 0:00:12.7]} 39... Qd4+ {[%clk 0:00:05]} 40. Kf3
{[%clk 0:00:13.2]} 40... Nh5 {[%clk 0:00:02.3]} 41. e6+ {[%clk 0:00:11.6]} 41...
Kg8 {[%clk 0:00:02.8]} 42. Qd8+ {[%clk 0:00:11.2]} 42... Kg7 {[%clk 0:00:03.2]}
43. Qe7+ {[%clk 0:00:11.8]} 43... Kg8 {[%clk 0:00:03.5]} 44. Qf7+ {[%clk
0:00:12.4]} 44... Kh8 {[%clk 0:00:04.1]} 45. Qf8# {[%clk 0:00:13.3]} 1-0

[Event "*** Titled Tuesday Blitz"]
[Site "Chess.com"]
[Date "2021.02.02"]
[Round "7"]
[White "BairaKovanova"]
[Black "MartinMatthiesen"]
[Result "0-1"]
[WhiteElo "2480"]
[BlackElo "2362"]
[TimeControl "180+1"]
[EndTime "11:19:32 PST"]
[Termination "MartinMatthiesen won by resignation"]

1. e4 {[%clk 0:03:00.9]} 1... c6 {[%clk 0:02:58.9]} 2. d4 {[%clk 0:03:00]} 2...
d5 {[%clk 0:02:58.9]} 3. Nc3 {[%clk 0:03:00.4]} 3... dxe4 {[%clk 0:02:58.7]} 4.
Nxe4 {[%clk 0:03:01.1]} 4... Bf5 {[%clk 0:02:59.1]} 5. Ng3 {[%clk 0:03:00.4]}
5... Bg6 {[%clk 0:02:59.3]} 6. Nf3 {[%clk 0:03:00.6]} 6... Nd7 {[%clk
0:02:56.9]} 7. Bd3 {[%clk 0:03:00.3]} 7... Ngf6 {[%clk 0:02:53.9]} 8. O-O {[%clk
0:02:59.3]} 8... e6 {[%clk 0:02:51.6]} 9. Bxg6 {[%clk 0:02:56.8]} 9... hxg6
{[%clk 0:02:51.4]} 10. Bf4 {[%clk 0:02:55.8]} 10... Be7 {[%clk 0:02:40]} 11. c4
{[%clk 0:02:55.1]} 11... O-O {[%clk 0:02:39.2]} 12. Re1 {[%clk 0:02:54.9]} 12...
Re8 {[%clk 0:02:31.7]} 13. Qe2 {[%clk 0:02:49.1]} 13... c5 {[%clk 0:02:27.5]}
14. Rad1 {[%clk 0:02:45.8]} 14... cxd4 {[%clk 0:02:23.8]} 15. Rxd4 {[%clk
0:02:36.7]} 15... Qb6 {[%clk 0:02:18.6]} 16. Red1 {[%clk 0:02:35.9]} 16... Qc6
{[%clk 0:02:05.4]} 17. Be5 {[%clk 0:02:07.4]} 17... Nxe5 {[%clk 0:02:00.5]} 18.
Nxe5 {[%clk 0:02:06.6]} 18... Qc5 {[%clk 0:01:55.5]} 19. a3 {[%clk 0:02:02.3]}
19... a5 {[%clk 0:01:54.1]} 20. Nd7 {[%clk 0:01:49.2]} 20... Qc6 {[%clk
0:01:41.4]} 21. Nxf6+ {[%clk 0:01:29.6]} 21... gxf6 {[%clk 0:01:34.7]} 22. Ne4
{[%clk 0:01:18]} 22... f5 {[%clk 0:01:25.1]} 23. Nc3 {[%clk 0:01:10]} 23... Bc5
{[%clk 0:01:21.2]} 24. Rh4 {[%clk 0:01:08.1]} 24... Bf8 {[%clk 0:01:12.6]} 25.
Nb5 {[%clk 0:01:06.5]} 25... Rad8 {[%clk 0:01:08]} 26. Rhd4 {[%clk 0:01:03.5]}
26... Rxd4 {[%clk 0:01:06.4]} 27. Rxd4 {[%clk 0:01:04.1]} 27... Bg7 {[%clk
0:01:04.7]} 28. Rd6 {[%clk 0:01:03.9]} 28... Qc5 {[%clk 0:01:05]} 29. h3 {[%clk
0:01:04.2]} 29... e5 {[%clk 0:01:01.6]} 30. Rd5 {[%clk 0:01:00.6]} 30... Qc6
{[%clk 0:01:01.7]} 31. b4 {[%clk 0:00:53.3]} 31... axb4 {[%clk 0:01:01.3]} 32.
axb4 {[%clk 0:00:53.6]} 32... e4 {[%clk 0:01:02.2]} 33. Rd6 {[%clk 0:00:47.3]}
33... Qc8 {[%clk 0:00:58.1]} 34. c5 {[%clk 0:00:47.3]} 34... Be5 {[%clk
0:00:51]} 35. Rd5 {[%clk 0:00:46.9]} 35... Qe6 {[%clk 0:00:47.8]} 36. Qd2 {[%clk
0:00:41.7]} 36... Bf4 {[%clk 0:00:42.3]} 37. Qxf4 {[%clk 0:00:24.5]} 37... Qxd5
{[%clk 0:00:41.7]} 38. Nc7 {[%clk 0:00:24.2]} 38... Qd1+ {[%clk 0:00:40.1]} 39.
Kh2 {[%clk 0:00:24.3]} 39... Re7 {[%clk 0:00:38.9]} 40. Nb5 {[%clk 0:00:20]}
40... Qd3 {[%clk 0:00:33.8]} 41. Nd6 {[%clk 0:00:18.3]} 41... e3 {[%clk
0:00:31.9]} 42. fxe3 {[%clk 0:00:18.4]} 42... Qxe3 {[%clk 0:00:24.8]} 43. Qh4
{[%clk 0:00:18.3]} 43... Qe5+ {[%clk 0:00:19.6]} 44. Kg1 {[%clk 0:00:15.8]}
44... b6 {[%clk 0:00:19.6]} 45. Nc8 {[%clk 0:00:12.8]} 45... Rd7 {[%clk
0:00:18.8]} 46. Nd6 {[%clk 0:00:10.5]} 46... bxc5 {[%clk 0:00:17.8]} 47. bxc5
{[%clk 0:00:10.5]} 47... Qxc5+ {[%clk 0:00:17.2]} 0-1

[Event "*** Titled Tuesday Blitz"]
[Site "Chess.com"]
[Date "2021.02.02"]
[Round "7"]
[White "Philosopherrr"]
[Black "superchess02"]
[Result "1-0"]
[WhiteElo "2586"]
[BlackElo "2781"]
[TimeControl "180+1"]
[EndTime "11:19:33 PST"]
[Termination "Philosopherrr won by resignation"]

1. e4 {[%clk 0:02:47.7]} 1... c6 {[%clk 0:01:57.7]} 2. d4 {[%clk 0:02:43.9]}
2... d5 {[%clk 0:01:58.3]} 3. exd5 {[%clk 0:02:44.8]} 3... cxd5 {[%clk
0:01:58.9]} 4. c4 {[%clk 0:02:45.4]} 4... Nf6 {[%clk 0:01:58.2]} 5. Nc3 {[%clk
0:02:46]} 5... Nc6 {[%clk 0:01:58.5]} 6. Bg5 {[%clk 0:02:46.4]} 6... dxc4 {[%clk
0:01:55.4]} 7. Bxc4 {[%clk 0:02:45.3]} 7... e6 {[%clk 0:01:41.2]} 8. Nf3 {[%clk
0:02:44.4]} 8... Be7 {[%clk 0:01:40.6]} 9. O-O {[%clk 0:02:43.9]} 9... O-O
{[%clk 0:01:41.2]} 10. a3 {[%clk 0:02:44.1]} 10... b6 {[%clk 0:01:40.7]} 11. Re1
{[%clk 0:02:42.7]} 11... Bb7 {[%clk 0:01:40.6]} 12. Rc1 {[%clk 0:02:41.7]} 12...
Rc8 {[%clk 0:01:40.4]} 13. Ba2 {[%clk 0:02:41.2]} 13... h6 {[%clk 0:01:39.5]}
14. Bh4 {[%clk 0:02:35.6]} 14... Nh5 {[%clk 0:01:37]} 15. Bg3 {[%clk 0:02:02.6]}
15... Nxg3 {[%clk 0:01:34.6]} 16. hxg3 {[%clk 0:02:02.8]} 16... Bf6 {[%clk
0:01:33.2]} 17. d5 {[%clk 0:02:00]} 17... exd5 {[%clk 0:01:32.7]} 18. Bxd5
{[%clk 0:01:26.9]} 18... Na5 {[%clk 0:01:32.8]} 19. Bxb7 {[%clk 0:01:18.5]}
19... Nxb7 {[%clk 0:01:33.6]} 20. Nd5 {[%clk 0:00:58.9]} 20... Rxc1 {[%clk
0:01:33]} 21. Nxf6+ {[%clk 0:00:57.8]} 21... Qxf6 {[%clk 0:01:33.9]} 22. Qxc1
{[%clk 0:00:58.4]} 22... Nc5 {[%clk 0:01:33.5]} 23. Re3 {[%clk 0:00:55.1]} 23...
Rd8 {[%clk 0:01:32]} 24. b4 {[%clk 0:00:53.9]} 24... Nd3 {[%clk 0:01:15.5]} 25.
Qc7 {[%clk 0:00:30.3]} 25... Rd5 {[%clk 0:01:00.7]} 26. Qc8+ {[%clk 0:00:22]}
26... Kh7 {[%clk 0:01:00.4]} 27. Qc4 {[%clk 0:00:22.5]} 27... Qa1+ {[%clk
0:00:35.1]} 28. Kh2 {[%clk 0:00:22]} 28... Rh5+ {[%clk 0:00:35.7]} 29. Nh4
{[%clk 0:00:19.8]} 29... Ne5 {[%clk 0:00:36.3]} 30. Qe4+ {[%clk 0:00:18.3]}
30... g6 {[%clk 0:00:36.2]} 31. Qf4 {[%clk 0:00:17.6]} 31... Kg7 {[%clk
0:00:29.2]} 32. Qe4 {[%clk 0:00:08.2]} 32... Qd1 {[%clk 0:00:27.2]} 33. f3
{[%clk 0:00:07.3]} 33... Qd6 {[%clk 0:00:25.3]} 34. Qf4 {[%clk 0:00:06]} 34...
g5 {[%clk 0:00:22.5]} 35. Qxe5+ {[%clk 0:00:04]} 35... Qxe5 {[%clk 0:00:22.5]}
36. Rxe5 {[%clk 0:00:04.6]} 36... Kf6 {[%clk 0:00:23.2]} 37. Rf5+ {[%clk
0:00:05]} 37... Ke6 {[%clk 0:00:23.4]} 38. Rb5 {[%clk 0:00:05.4]} 38... f5
{[%clk 0:00:20.5]} 39. Rxf5 {[%clk 0:00:05.4]} 39... Rxh4+ {[%clk 0:00:20.9]}
40. gxh4 {[%clk 0:00:05.9]} 40... Kxf5 {[%clk 0:00:21.8]} 41. hxg5 {[%clk
0:00:06.3]} 41... hxg5 {[%clk 0:00:22.7]} 42. Kg3 {[%clk 0:00:07.1]} 42... a5
{[%clk 0:00:22.7]} 43. bxa5 {[%clk 0:00:07]} 43... bxa5 {[%clk 0:00:23.6]} 44.
a4 {[%clk 0:00:07.9]} 44... Ke5 {[%clk 0:00:22]} 45. Kg4 {[%clk 0:00:08.3]}
45... Kd4 {[%clk 0:00:22.9]} 46. Kxg5 {[%clk 0:00:08]} 46... Kc4 {[%clk
0:00:23.8]} 47. f4 {[%clk 0:00:08.9]} 47... Kb4 {[%clk 0:00:24.7]} 48. f5 {[%clk
0:00:09.6]} 48... Kxa4 {[%clk 0:00:25.6]} 49. f6 {[%clk 0:00:10.4]} 1-0

[Event "*** Titled Tuesday Blitz"]
[Site "Chess.com"]
[Date "2021.02.02"]
[Round "7"]
[White "szefru"]
[Black "KetiGrant"]
[Result "1-0"]
[WhiteElo "2228"]
[BlackElo "2359"]
[TimeControl "180+1"]
[EndTime "11:19:34 PST"]
[Termination "szefru won on time"]

1. e4 {[%clk 0:03:00.9]} 1... c5 {[%clk 0:02:59.2]} 2. Nf3 {[%clk 0:02:59.6]}
2... Nc6 {[%clk 0:02:59.3]} 3. Bb5 {[%clk 0:02:58.2]} 3... g6 {[%clk 0:02:59.3]}
4. Nc3 {[%clk 0:02:57.1]} 4... Bg7 {[%clk 0:02:58.8]} 5. O-O {[%clk 0:02:57.7]}
5... Nf6 {[%clk 0:02:51.8]} 6. Bxc6 {[%clk 0:02:56.7]} 6... dxc6 {[%clk
0:02:50.9]} 7. e5 {[%clk 0:02:57.2]} 7... Ng4 {[%clk 0:02:43.4]} 8. Qe2 {[%clk
0:02:56]} 8... Qc7 {[%clk 0:02:42.4]} 9. Re1 {[%clk 0:02:55.3]} 9... h5 {[%clk
0:02:41.5]} 10. h3 {[%clk 0:02:54.1]} 10... Nh6 {[%clk 0:02:35.9]} 11. d3 {[%clk
0:02:54.3]} 11... Nf5 {[%clk 0:02:33.9]} 12. Ne4 {[%clk 0:02:54]} 12... b6
{[%clk 0:02:30.1]} 13. Nf6+ {[%clk 0:02:19.3]} 13... Kf8 {[%clk 0:02:28.5]} 14.
Ne4 {[%clk 0:02:08.2]} 14... Be6 {[%clk 0:02:19.5]} 15. Neg5 {[%clk 0:02:06]}
15... Bd5 {[%clk 0:02:16.7]} 16. Bf4 {[%clk 0:01:58.8]} 16... Bxf3 {[%clk
0:02:13.5]} 17. Qxf3 {[%clk 0:01:58.3]} 17... e6 {[%clk 0:02:13.6]} 18. Bh2
{[%clk 0:01:54.3]} 18... h4 {[%clk 0:02:04.7]} 19. Rad1 {[%clk 0:01:46]} 19...
Ke7 {[%clk 0:02:02.8]} 20. c3 {[%clk 0:01:45.6]} 20... Rad8 {[%clk 0:02:01.6]}
21. Ne4 {[%clk 0:01:44.8]} 21... Qd7 {[%clk 0:01:33.3]} 22. Nd6 {[%clk
0:01:44.2]} 22... Rh5 {[%clk 0:01:19.9]} 23. d4 {[%clk 0:01:27.6]} 23... cxd4
{[%clk 0:01:16.9]} 24. cxd4 {[%clk 0:01:28.5]} 24... Nxd6 {[%clk 0:01:15.1]} 25.
exd6+ {[%clk 0:01:29.4]} 25... Kf8 {[%clk 0:01:14.9]} 26. Be5 {[%clk 0:01:26.8]}
26... Kg8 {[%clk 0:00:55.8]} 27. Rc1 {[%clk 0:01:24.4]} 27... c5 {[%clk
0:00:52.3]} 28. Bxg7 {[%clk 0:01:11.2]} 28... Kxg7 {[%clk 0:00:50.4]} 29. dxc5
{[%clk 0:01:11.4]} 29... bxc5 {[%clk 0:00:49.3]} 30. Red1 {[%clk 0:01:10.2]}
30... Qb5 {[%clk 0:00:31.2]} 31. b3 {[%clk 0:01:07.1]} 31... Rd7 {[%clk
0:00:24.1]} 32. Rc4 {[%clk 0:01:03.4]} 32... Qb6 {[%clk 0:00:15.5]} 33. Qc3+
{[%clk 0:01:02.7]} 33... Kg8 {[%clk 0:00:14.6]} 34. Rc1 {[%clk 0:00:59.8]} 34...
Qxd6 {[%clk 0:00:12.3]} 35. Rxc5 {[%clk 0:00:59.5]} 35... Rxc5 {[%clk
0:00:10.7]} 36. Qxc5 {[%clk 0:01:00.4]} 36... Qxc5 {[%clk 0:00:10.2]} 37. Rxc5
{[%clk 0:01:01.3]} 37... Kf8 {[%clk 0:00:10.6]} 38. Rc2 {[%clk 0:00:55]} 38...
g5 {[%clk 0:00:09.4]} 39. Kh2 {[%clk 0:00:53]} 39... f6 {[%clk 0:00:08.7]} 40.
g3 {[%clk 0:00:53.5]} 40... hxg3+ {[%clk 0:00:07.4]} 41. Kxg3 {[%clk 0:00:54.2]}
41... Kf7 {[%clk 0:00:07.4]} 42. h4 {[%clk 0:00:50.3]} 42... Kg6 {[%clk
0:00:06.7]} 43. hxg5 {[%clk 0:00:50]} 43... Kxg5 {[%clk 0:00:07.3]} 44. f4+
{[%clk 0:00:48.4]} 44... Kf5 {[%clk 0:00:06]} 45. Rc5+ {[%clk 0:00:48.3]} 45...
e5 {[%clk 0:00:06.1]} 46. fxe5 {[%clk 0:00:47.9]} 46... fxe5 {[%clk 0:00:07]}
47. Kf3 {[%clk 0:00:47.7]} 47... Rd3+ {[%clk 0:00:05.6]} 48. Ke2 {[%clk
0:00:47.6]} 48... Rh3 {[%clk 0:00:04.4]} 49. a4 {[%clk 0:00:46.4]} 49... Kf4
{[%clk 0:00:03.4]} 50. Rc4+ {[%clk 0:00:46.1]} 50... e4 {[%clk 0:00:02.8]} 51.
b4 {[%clk 0:00:45.5]} 51... Rh2+ {[%clk 0:00:02.2]} 52. Ke1 {[%clk 0:00:44.4]}
52... Kf3 {[%clk 0:00:01.5]} 53. Rc7 {[%clk 0:00:41.4]} 1-0